Workbook

Sheet отчет
D1: Плановое задание за | E1: =DAY(TODAY())-1 -> 28 | F1: =план_график!A1 -> 2016-09-01
A2: Наименование | B2: План на месяц, м | C2: план на сутки, м | D2: План с начала месяца, м | E2: Факт. выполнение с начала месяца, м | F2: Выполнено с начала месяца, % | G2: Выполнено к месячному плану, %
A3: Товар 1 | B3: =VLOOKUP(A3,план_график!$A$2:$D$6,3,0) -> 32595 | C3: =VLOOKUP(A3,план_график!$A$2:$D$6,4,0) -> 6519 | D3: =C3*5 -> 32595 | E3: 32595 | F3: =IFERROR(E3*100/D3,"") -> 100 | G3: =IFERROR(E3*100/B3,"") -> 100
A4: Товар 2 | B4: =VLOOKUP(A4,план_график!$A$2:$D$6,3,0) -> 37500 | C4: =VLOOKUP(A4,план_график!$A$2:$D$6,4,0) -> 7500 | D4: =C4*5 -> 37500 | E4: 38000 | F4: =IFERROR(E4*100/D4,"") -> 101.3333333 | G4: =IFERROR(E4*100/B4,"") -> 101.3333333
A5: Товар 3 | B5: =VLOOKUP(A5,план_график!$A$2:$D$6,3,0) -> 193401 | C5: =VLOOKUP(A5,план_график!$A$2:$D$6,4,0) -> 6669 | D5: =C5*27 -> 180063 | E5: 177000 | F5: 98.29892871 | G5: 91.51969225

Sheet план_график
A1: 2016-09-01 | B1: № линии | C1: План на месяц | D1: план на сутки | E1: ст. дн. | F1: =A1 -> 2016-09-01 | G1: =F1+1 -> 2016-09-02 | H1: =G1+1 -> 2016-09-03 | I1: 2016-09-04 | J1: 2016-09-05 | K1: 2016-09-06 | L1: 2016-09-07 | M1: 2016-09-08 | N1: 2016-09-09 | O1: 2016-09-10 | P1: 2016-09-11 | Q1: 2016-09-12 | R1: 2016-09-13 | S1: 2016-09-14 | T1: 2016-09-15 | U1: 2016-09-16 | V1: 2016-09-17 | W1: 2016-09-18 | X1: 2016-09-19 | Y1: 2016-09-20 | Z1: 2016-09-21 | AA1: 2016-09-22 | AB1: 2016-09-23 | AC1: 2016-09-24 | AD1: 2016-09-25 | AE1: 2016-09-26 | AF1: 2016-09-27 | AG1: 2016-09-28 | AH1: 2016-09-29 | AI1: 2016-09-30 | AJ1: 2016-10-01
A2: Товар 1 | B2: 7 | C2: 32595 | D2: 6519 | E2: =C2/D2 -> 5 | V2: 6.519 | W2: =V2+6.519 -> 13.038 | X2: =W2+6.519 -> 19.557 | Y2: =X2+6.519 -> 26.076 | Z2: =Y2+6.519 -> 32.595
Z3: 32.595
A4: Товар 2 | B4: 7 | C4: 37500 | D4: 7500 | E4: =C4/D4 -> 5 | O4: 7.5 | P4: =O4+7.5 -> 15 | Q4: 22.5 | R4: 30 | S4: 37.5
S5: 38
A6: Товар 3 | B6: 3 | C6: 193401 | D6: 6669 | E6: =C6/D6 -> 29 | F6: 6.669 | G6: =F6+6.669 -> 13.338 | H6: 20.007 | I6: 26.676 | J6: 33.345 | K6: 40.014 | L6: 46.683 | M6: 53.352 | N6: 60.021 | O6: 66.69 | P6: 73.359 | Q6: 80.028 | R6: 86.697 | S6: 93.366 | T6: 100.035 | U6: 106.704 | V6: 113.373 | W6: 120.042 | X6: 126.711 | Y6: 133.38 | Z6: 140.049 | AA6: 146.718 | AB6: 153.387 | AC6: =AB6+6.669 -> 160.056 | AD6: =AC6+6.669 -> 166.725 | AE6: =AD6+6.669 -> 173.394 | AF6: =AE6+6.669 -> 180.063 | AG6: =AF6+6.669 -> 186.732 | AH6: =AG6+6.669 -> 193.401
AG7: 177
O12: Должно получиться
A14: 2016-09-01 | B14: № линии | C14: План на месяц | D14: план на сутки | E14: ст. дн. | F14: =A14 -> 2016-09-01 | G14: =F14+1 -> 2016-09-02 | H14: =G14+1 -> 2016-09-03 | I14: =H14+1 -> 2016-09-04 | J14: =I14+1 -> 2016-09-05 | K14: =J14+1 -> 2016-09-06 | L14: =K14+1 -> 2016-09-07 | M14: =L14+1 -> 2016-09-08 | N14: =M14+1 -> 2016-09-09 | O14: =N14+1 -> 2016-09-10 | P14: =O14+1 -> 2016-09-11 | Q14: =P14+1 -> 2016-09-12 | R14: =Q14+1 -> 2016-09-13 | S14: =R14+1 -> 2016-09-14 | T14: =S14+1 -> 2016-09-15 | U14: =T14+1 -> 2016-09-16 | V14: =U14+1 -> 2016-09-17 | W14: =V14+1 -> 2016-09-18 | X14: =W14+1 -> 2016-09-19 | Y14: =X14+1 -> 2016-09-20 | Z14: =Y14+1 -> 2016-09-21 | AA14: =Z14+1 -> 2016-09-22 | AB14: =AA14+1 -> 2016-09-23 | AC14: =AB14+1 -> 2016-09-24 | AD14: =AC14+1 -> 2016-09-25 | AE14: =AD14+1 -> 2016-09-26 | AF14: =AE14+1 -> 2016-09-27 | AG14: =AF14+1 -> 2016-09-28 | AH14: =AG14+1 -> 2016-09-29 | AI14: =AH14+1 -> 2016-09-30 | AJ14: =AI14+1 -> 2016-10-01
A15: Товар 1 | B15: 7 | C15: 32595 | D15: 6519 | E15: =C15/D15 -> 5 | V15: 6.519 | W15: =V15+6.519 -> 13.038 | X15: =W15+6.519 -> 19.557 | Y15: =X15+6.519 -> 26.076 | Z15: =Y15+6.519 -> 32.595
Z16: 32.595
A17: Товар 2 | B17: 7 | C17: 37500 | D17: 7500 | E17: =C17/D17 -> 5 | O17: 7.5 | P17: =O17+7.5 -> 15 | Q17: =P17+7.5 -> 22.5 | R17: =Q17+7.5 -> 30 | S17: =R17+7.5 -> 37.5
S18: 38
A19: Товар 3 | B19: 3 | C19: 193401 | D19: 6669 | E19: =C19/D19 -> 29 | F19: 6.669 | G19: =F19+6.669 -> 13.338 | H19: =G19+6.669 -> 20.007 | I19: =H19+6.669 -> 26.676 | J19: =I19+6.669 -> 33.345 | K19: =J19+6.669 -> 40.014 | L19: =K19+6.669 -> 46.683 | M19: =L19+6.669 -> 53.352 | N19: =M19+6.669 -> 60.021 | O19: =N19+6.669 -> 66.69 | P19: =O19+6.669 -> 73.359 | Q19: =P19+6.669 -> 80.028 | R19: =Q19+6.669 -> 86.697 | S19: =R19+6.669 -> 93.366 | T19: =S19+6.669 -> 100.035 | U19: =T19+6.669 -> 106.704 | V19: =U19+6.669 -> 113.373 | W19: =V19+6.669 -> 120.042 | X19: =W19+6.669 -> 126.711 | Y19: =X19+6.669 -> 133.38 | Z19: =Y19+6.669 -> 140.049 | AA19: =Z19+6.669 -> 146.718 | AB19: =AA19+6.669 -> 153.387 | AC19: =AB19+6.669 -> 160.056 | AD19: =AC19+6.669 -> 166.725 | AE19: =AD19+6.669 -> 173.394 | AF19: =AE19+6.669 -> 180.063 | AG19: =AF19+6.669 -> 186.732 | AH19: =AG19+6.669 -> 193.401
AF20: 177
A23: После заполнения столбца Е на листе "отчет", на листе "план_график" в строках 3, 5 и 7 должны появиться соответствующие данные за вчерашний день (с учетом выполненного плана, см. образец ниже).
